fUST/lending_fUST_20250317
["ID","MTS","AMOUNT","RATE_DAILY","PERIOD"]
[356262198,1742153446741,-500.0,8.219e-05,2]
[356262199,1742153446751,-500.0,8.219e-05,2]
[356262200,1742153446762,-500.0,8.219e-05,2]
[356262201,1742153446771,-500.0,8.219e-05,2]
[356262202,1742153446781,-500.0,8.219e-05,2]
[356262203,1742153446791,-500.0,8.219e-05,2]
[356262204,1742153446801,-500.0,8.219e-05,2]
[356262205,1742153446811,-500.0,8.219e-05,2]
[356262206,1742153446820,-500.0,8.219e-05,2]
[356262207,1742153446830,-504.02525109,8.219e-05,2]
[356262208,1742153446839,-500.0,8.219e-05,2]
[356262209,1742153446850,-505.64932111,8.219e-05,2]
[356262210,1742153446863,-500.0,8.219e-05,2]
[356262211,1742153446872,-520.44516626,8.219e-05,2]
[356262212,1742153446882,-500.0,8.219e-05,2]
[356262213,1742153446891,-500.0,8.219e-05,2]
[356262214,1742153446903,-500.0,8.219e-05,2]
[356262215,1742153446913,-504.97880082,8.219e-05,2]
[356262216,1742153446923,-503.31705394,8.219e-05,2]
[356262217,1742153446933,-500.0,8.219e-05,2]
[356262218,1742153446943,-500.0,8.219e-05,2]
[356262219,1742153446953,-500.0,8.219e-05,2]
[356262220,1742153446963,-500.0,8.219e-05,2]
[356262221,1742153446973,-500.0,8.219e-05,2]
[356262222,1742153446983,-500.0,8.219e-05,2]
[356262223,1742153446993,-500.0,8.219e-05,2]
[356262224,1742153447004,-513.79844061,8.219e-05,2]
[356262225,1742153447014,-500.0,8.219e-05,2]
[356262226,1742153447024,-500.0,8.219e-05,2]
[356262227,1742153447034,-507.14895522,8.219e-05,2]
[356262228,1742153447044,-500.0,8.219e-05,2]
[356262229,1742153447053,-600.70683917,8.219e-05,2]
[356262230,1742153447063,-500.0,8.219e-05,2]
[356262231,1742153447072,-478.05598277,8.219e-05,2]
[356262232,1742153447083,-500.0,8.219e-05,2]
[356262233,1742153447092,-330.79281346,8.219e-05,2]
[356262234,1742153447101,-503.04875408,8.219e-05,2]
[356262235,1742153447112,-500.0,8.219e-05,2]
[356262236,1742153447121,-500.0,8.219e-05,2]
[356262237,1742153447131,-500.0,8.219e-05,2]
[356262238,1742153447140,-510.25093208,8.219e-05,2]
[356262239,1742153447150,-500.0,8.219e-05,2]
[356262240,1742153447160,-500.0,8.219e-05,2]
[356262241,1742153447169,-500.0,8.219e-05,2]
[356262242,1742153447179,-500.0,8.219e-05,2]
[356262243,1742153447189,-500.0,8.219e-05,2]
[356262244,1742153447199,-505.66285216,8.219e-05,2]
[356262245,1742153447210,-500.0,8.219e-05,2]
[356262246,1742153447219,-500.0,8.219e-05,2]
[356262247,1742153447228,-500.0,8.219e-05,2]
[356262248,1742153447238,-500.0,8.219e-05,2]
[356262249,1742153447247,-500.0,8.219e-05,2]
[356262250,1742153447256,-505.58115245,8.219e-05,2]
[356262251,1742153447266,-512.12479303,8.219e-05,2]
[356262252,1742153447275,-500.0,8.219e-05,2]
[356262253,1742153447285,-506.90552926,8.219e-05,2]
[356262254,1742153447294,-500.0,8.219e-05,2]
[356262255,1742153447304,-500.0,8.219e-05,2]
[356262256,1742153447313,-500.0,8.219e-05,2]
[356262257,1742153447323,-500.0,8.219e-05,2]
[356262258,1742153447332,-516.9058566,8.219e-05,2]
[356262259,1742153447341,-500.0,8.219e-05,2]
[356262260,1742153447351,-504.99633724,8.219e-05,2]
[356262261,1742153447361,-500.0,8.219e-05,2]
[356262262,1742153447370,-509.87487944,8.219e-05,2]
[356262263,1742153447379,-500.0,8.219e-05,2]
[356262264,1742153447389,-504.88844218,8.219e-05,2]
[356262265,1742153447399,-512.94515158,8.219e-05,2]
[356262266,1742153447408,-500.0,8.219e-05,2]
[356262267,1742153447417,-500.0,8.219e-05,2]
[356262268,1742153447427,-500.0,8.219e-05,2]
[356262269,1742153447436,-500.0,8.219e-05,2]
[356262270,1742153447445,-338.94108516,8.219e-05,2]
[356262271,1742153447455,-500.0,8.219e-05,2]
[356262272,1742153447465,-500.0,8.219e-05,2]
[356262273,1742153447474,-500.0,8.219e-05,2]
[356262274,1742153447483,-505.57099582,8.219e-05,2]
[356262275,1742153447493,-500.0,8.219e-05,2]
[356262276,1742153447502,-500.0,8.219e-05,2]
[356262277,1742153447511,-500.0,8.219e-05,2]
[356262278,1742153447521,-500.0,8.219e-05,2]
[356262279,1742153447531,-500.0,8.219e-05,2]
[356262280,1742153447540,-500.0,8.219e-05,2]
[356262281,1742153447549,-507.31315764,8.219e-05,2]
[356262282,1742153447559,-500.0,8.219e-05,2]
[356262283,1742153447568,-500.0,8.219e-05,2]
[356262284,1742153447578,-500.0,8.219e-05,2]
[356262285,1742153447587,-401.0,8.219e-05,2]
[356262286,1742153447597,-500.0,8.219e-05,2]
[356262287,1742153447607,-500.0,8.219e-05,2]
[356262288,1742153447616,-500.0,8.219e-05,2]
[356262289,1742153447626,-500.0,8.219e-05,2]
[356262290,1742153447635,-500.0,8.219e-05,2]
[356262291,1742153447645,-500.0,8.219e-05,2]
[356262292,1742153447654,-503.70847964,8.219e-05,2]
[356262293,1742153447664,-506.84414253,8.219e-05,2]
[356262294,1742153447673,-500.0,8.219e-05,2]
[356262295,1742153447683,-500.0,8.219e-05,2]
[356262296,1742153447692,-500.0,8.219e-05,2]
[356262297,1742153447701,-500.0,8.219e-05,2]
[356262298,1742153447711,-500.0,8.219e-05,2]
[356262299,1742153447720,-500.0,8.219e-05,2]
[356262300,1742153447730,-500.0,8.219e-05,2]
[356262301,1742153447739,-500.0,8.219e-05,2]
[356262302,1742153447749,-500.0,8.219e-05,2]
[356262303,1742153447759,-500.0,8.219e-05,2]
[356262304,1742153447769,-500.0,8.219e-05,2]
[356262305,1742153447778,-506.51842992,8.219e-05,2]
[356262306,1742153447787,-500.0,8.219e-05,2]
[356262307,1742153447796,-524.32094634,8.219e-05,2]
[356262308,1742153447806,-509.18548445,8.219e-05,2]
[356262309,1742153447815,-500.0,8.219e-05,2]
[356262310,1742153447824,-500.0,8.219e-05,2]
[356262311,1742153447834,-252.34605202,8.219e-05,2]
[356262312,1742153447844,-502.49983906,8.219e-05,2]
[356262313,1742153447859,-500.0,8.219e-05,2]
[356262314,1742153447868,-500.0,8.219e-05,2]
[356262315,1742153447878,-500.0,8.219e-05,2]
[356262316,1742153447888,-500.0,8.219e-05,2]
[356262317,1742153447899,-500.0,8.219e-05,2]
[356262318,1742153447909,-500.0,8.219e-05,2]
[356262319,1742153447918,-500.0,8.219e-05,2]
[356262320,1742153447928,-503.73356067,8.219e-05,2]
[356262321,1742153447940,-500.0,8.219e-05,2]
[356262322,1742153447950,-500.0,8.219e-05,2]
[356262323,1742153447960,-500.0,8.219e-05,2]
[356262324,1742153447971,-500.0,8.219e-05,2]
[356262325,1742153447980,-512.19236725,8.219e-05,2]
[356262326,1742153447990,-509.46257746,8.219e-05,2]
[356262327,1742153447999,-500.0,8.219e-05,2]
[356262328,1742153448009,-500.0,8.219e-05,2]
[356262329,1742153448018,-500.0,8.219e-05,2]
[356262330,1742153448028,-500.0,8.219e-05,2]
[356262331,1742153448038,-500.0,8.219e-05,2]
[356262332,1742153448047,-500.0,8.219e-05,2]
[356262333,1742153448057,-262.63841683,8.219e-05,2]
[356262334,1742153448066,-500.0,8.219e-05,2]
[356262335,1742153448076,-500.0,8.219e-05,2]
[356262336,1742153448086,-514.70221646,8.219e-05,2]
[356262337,1742153448096,-500.0,8.219e-05,2]
[356262338,1742153448106,-500.0,8.219e-05,2]
[356262339,1742153448116,-500.0,8.219e-05,2]
[356262340,1742153448126,-501.4763483,8.219e-05,2]
[356262341,1742153448136,-912.53,8.219e-05,2]
[356262342,1742153448146,-500.0,8.219e-05,2]
[356262343,1742153448156,-500.0,8.219e-05,2]
[356262344,1742153448166,-500.0,8.219e-05,2]
[356262345,1742153448175,-500.0,8.219e-05,2]
[356262346,1742153448185,-500.0,8.219e-05,2]
[356262347,1742153448195,-500.0,8.219e-05,2]
[356262348,1742153448205,-500.0,8.219e-05,2]
[356262349,1742153448215,-500.78701828,8.219e-05,2]
[356262350,1742153448224,-500.0,8.219e-05,2]
[356262351,1742153448234,-500.0,8.219e-05,2]
[356262352,1742153448243,-500.0,8.219e-05,2]
[356262353,1742153448253,-628.0337531,8.219e-05,2]
[356262354,1742153448263,-519.26437026,8.219e-05,2]
[356262355,1742153448273,-500.0,8.219e-05,2]
[356262356,1742153448283,-500.0,8.219e-05,2]
[356262357,1742153448292,-500.0,8.219e-05,2]
[356262358,1742153448302,-500.0,8.219e-05,2]
[356262359,1742153448312,-500.0,8.219e-05,2]
[356262360,1742153448322,-500.0,8.219e-05,2]
[356262361,1742153448331,-500.0,8.219e-05,2]
[356262362,1742153448341,-500.0,8.219e-05,2]
[356262363,1742153448352,-500.0,8.219e-05,2]
[356262364,1742153448362,-500.0,8.219e-05,2]
[356262365,1742153448372,-500.0,8.219e-05,2]
[356262366,1742153448381,-500.0,8.219e-05,2]
[356262367,1742153448391,-502.2206239,8.219e-05,2]
[356262368,1742153448400,-500.0,8.219e-05,2]
[356262369,1742153448410,-4192.41,8.219e-05,2]
[356262370,1742153448419,-500.0,8.219e-05,2]
[356262371,1742153448428,-500.0,8.219e-05,2]
[356262372,1742153448438,-500.0,8.219e-05,2]
[356262373,1742153448448,-503.64267702,8.219e-05,2]
[356262374,1742153448458,-502.99478747,8.219e-05,2]
[356262375,1742153448468,-500.0,8.219e-05,2]
[356262376,1742153448477,-500.0,8.219e-05,2]
[356262377,1742153448488,-500.0,8.219e-05,2]
[356262378,1742153448497,-500.0,8.219e-05,2]
[356262379,1742153448507,-483.08054946,8.219e-05,2]
[356262380,1742153448517,-505.61748362,8.219e-05,2]
[356262381,1742153448527,-500.0,8.219e-05,2]
[356262382,1742153448536,-3426.25,8.219e-05,2]
[356262383,1742153448546,-500.0,8.219e-05,2]
[356262384,1742153448555,-500.0,8.219e-05,2]
[356262385,1742153448565,-500.0,8.219e-05,2]
[356262386,1742153448575,-500.0,8.219e-05,2]
[356262387,1742153448585,-500.0,8.219e-05,2]
[356262388,1742153448594,-500.0,8.219e-05,2]
[356262389,1742153448604,-500.0,8.219e-05,2]
[356262390,1742153448614,-500.0,8.219e-05,2]
[356262391,1742153448623,-500.0,8.219e-05,2]
[356262392,1742153448633,-500.0,8.219e-05,2]
[356262393,1742153448643,-500.0,8.219e-05,2]
[356262394,1742153448652,-500.0,8.219e-05,2]
[356262395,1742153448661,-500.0,8.219e-05,2]
[356262396,1742153448671,-6598.11,8.219e-05,2]
[356262397,1742153448680,-500.0,8.219e-05,2]
[356262398,1742153448690,-500.0,8.219e-05,2]
[356262399,1742153448700,-2291.28,8.219e-05,2]
[356262400,1742153448710,-500.0,8.219e-05,2]
[356262401,1742153448720,-500.0,8.219e-05,2]
[356262402,1742153448729,-512.52032251,8.219e-05,2]
[356262403,1742153448739,-505.43277532,8.219e-05,2]
[356262404,1742153448749,-500.0,8.219e-05,2]
[356262405,1742153448759,-500.0,8.219e-05,2]
[356262406,1742153448769,-8134.69,8.219e-05,2]
[356262407,1742153448779,-501.53690518,8.219e-05,2]
[356262408,1742153448788,-3151.35,8.219e-05,2]
[356262409,1742153448798,-500.0,8.219e-05,2]
[356262410,1742153448807,-500.0,8.219e-05,2]
[356262411,1742153448817,-500.0,8.219e-05,2]
[356262412,1742153448827,-500.0,8.219e-05,2]
[356262413,1742153448836,-1372.14,8.219e-05,2]
[356262414,1742153448846,-1372.14,8.219e-05,2]
[356262415,1742153448859,-1372.14,8.219e-05,2]
[356262416,1742153448869,-1372.14,8.219e-05,2]
[356262417,1742153448879,-1372.14,8.219e-05,2]
[356262418,1742153448889,-1372.14,8.219e-05,2]
[356262419,1742153448899,-1372.14,8.219e-05,2]
[356262420,1742153448909,-1372.14,8.219e-05,2]
[356262421,1742153448922,-1372.14,8.219e-05,2]
[356262422,1742153448933,-1372.14,8.219e-05,2]
[356262423,1742153448943,-1372.14,8.219e-05,2]
[356262424,1742153448952,-1372.14,8.219e-05,2]
[356262425,1742153448962,-1372.14,8.219e-05,2]
[356262426,1742153448972,-1372.14,8.219e-05,2]
[356262427,1742153448982,-1372.14,8.219e-05,2]
[356262428,1742153448992,-1372.14,8.219e-05,2]
[356262429,1742153449002,-1372.14,8.219e-05,2]
[356262430,1742153449011,-1372.14,8.219e-05,2]
[356262431,1742153449021,-1372.14,8.219e-05,2]
[356262432,1742153449031,-1372.14,8.219e-05,2]
[356262433,1742153449041,-1372.14,8.219e-05,2]
[356262434,1742153449050,-1372.14,8.219e-05,2]
[356262435,1742153449060,-1372.14,8.219e-05,2]
[356262436,1742153449069,-1372.3,8.219e-05,2]
[356262437,1742153449079,-500.0,8.219e-05,2]
[356262438,1742153449089,-500.0,8.219e-05,2]
[356262439,1742153449099,-500.0,8.219e-05,2]
[356262440,1742153449110,-520.23262323,8.219e-05,2]
[356262441,1742153449120,-513.39967543,8.219e-05,2]
[356262442,1742153449129,-500.0,8.219e-05,2]
[356262443,1742153449139,-515.24167141,8.219e-05,2]
[356262444,1742153449148,-6347.0,8.219e-05,2]
[356262445,1742153449158,-500.0,8.219e-05,2]
[356262446,1742153449167,-500.0,8.219e-05,2]
[356262447,1742153449177,-500.0,8.219e-05,2]
[356262448,1742153449186,-500.0,8.219e-05,2]
[356262449,1742153449196,-500.0,8.219e-05,2]
[356262450,1742153449206,-500.0,8.219e-05,2]
[356262451,1742153449216,-803.85,8.219e-05,2]
[356262452,1742153449227,-500.0,8.219e-05,2]
[356262453,1742153449237,-251.07330412,8.219e-05,2]
[356262454,1742153449247,-500.0,8.219e-05,2]
[356262455,1742153449257,-500.0,8.219e-05,2]
[356262456,1742153449267,-500.0,8.219e-05,2]
[356262457,1742153449277,-504.15929471,8.219e-05,2]
[356262458,1742153449287,-500.0,8.219e-05,2]
[356262459,1742153449297,-500.0,8.219e-05,2]
[356262460,1742153449307,-1669.04,8.219e-05,2]
[356262461,1742153449317,-689.62,8.219e-05,2]
[356262462,1742153449327,-506.86262922,8.219e-05,2]
[356262463,1742153449336,-500.0,8.219e-05,2]
[356262464,1742153449347,-500.0,8.219e-05,2]
[356262465,1742153449360,-500.0,8.219e-05,2]
[356262466,1742153449370,-500.0,8.219e-05,2]
[356262467,1742153449380,-500.0,8.219e-05,2]
[356262468,1742153449390,-522.13512794,8.219e-05,2]
[356262469,1742153449399,-500.0,8.219e-05,2]
[356262470,1742153449409,-500.0,8.219e-05,2]
[356262471,1742153449419,-500.0,8.219e-05,2]
[356262472,1742153449429,-500.0,8.219e-05,2]
[356262473,1742153449438,-506.92281123,8.219e-05,2]
[356262474,1742153449448,-895.76,8.219e-05,2]
[356262475,1742153449457,-500.0,8.219e-05,2]
[356262476,1742153449467,-500.0,8.219e-05,2]
[356262477,1742153449476,-500.0,8.219e-05,2]
[356262478,1742153449486,-501.37275471,8.219e-05,2]
[356262479,1742153449495,-762.19,8.219e-05,2]
[356262480,1742153449505,-500.0,8.219e-05,2]
[356262481,1742153449515,-500.0,8.219e-05,2]
[356262482,1742153449524,-515.69296982,8.219e-05,2]
[356262483,1742153449534,-500.0,8.219e-05,2]
[356262484,1742153449543,-500.0,8.219e-05,2]
[356262485,1742153449553,-500.0,8.219e-05,2]
[356262486,1742153449562,-500.0,8.219e-05,2]
[356262487,1742153449572,-500.0,8.219e-05,2]
[356262488,1742153449582,-500.0,8.219e-05,2]
[356262489,1742153449592,-500.0,8.219e-05,2]
[356262490,1742153449604,-500.0,8.219e-05,2]
[356262491,1742153449613,-3624.26,8.219e-05,2]
[356262492,1742153449623,-500.0,8.219e-05,2]
[356262493,1742153449633,-500.0,8.219e-05,2]
[356262494,1742153449643,-500.0,8.219e-05,2]
[356262495,1742153449652,-500.0,8.219e-05,2]
[356262496,1742153449661,-500.0,8.219e-05,2]
[356262497,1742153449671,-500.0,8.219e-05,2]
[356262498,1742153449680,-500.0,8.219e-05,2]
[356262499,1742153449690,-500.0,8.219e-05,2]
[356262500,1742153449701,-574.41,8.219e-05,2]
[356262501,1742153449710,-500.0,8.219e-05,2]
[356262502,1742153449720,-554.48276918,8.219e-05,2]
[356262503,1742153449730,-500.0,8.219e-05,2]
[356262504,1742153449739,-500.0,8.219e-05,2]
[356262505,1742153449893,-500.0,8.219e-05,2]
[356262506,1742153449905,-530.5,8.219e-05,2]
[356262507,1742153449915,-671.7,8.219e-05,2]
[356262508,1742153449924,-511.35388508,8.219e-05,2]
[356262509,1742153449936,-500.0,8.219e-05,2]
[356262510,1742153449945,-1094.34,8.219e-05,2]
[356262511,1742153449955,-500.0,8.219e-05,2]
[356262512,1742153449964,-500.0,8.219e-05,2]
[356262513,1742153449973,-500.0,8.219e-05,2]
[356262514,1742153449983,-500.0,8.219e-05,2]
[356262515,1742153449992,-500.0,8.219e-05,2]
[356262516,1742153450002,-500.0,8.219e-05,2]
[356262517,1742153450011,-500.0,8.219e-05,2]
[356262518,1742153450020,-2184.05,8.219e-05,2]
[356262519,1742153450029,-11580.55,8.219e-05,2]
[356262520,1742153450040,-501.25218372,8.219e-05,2]
[356262521,1742153450049,-500.0,8.219e-05,2]
[356262522,1742153450059,-1297.57,8.219e-05,2]
[356262523,1742153450068,-500.0,8.219e-05,2]
[356262524,1742153450077,-500.0,8.219e-05,2]
[356262525,1742153450086,-873.0,8.219e-05,2]
[356262526,1742153450096,-500.0,8.219e-05,2]
[356262527,1742153450106,-1183.31,8.219e-05,2]
[356262528,1742153450115,-506.44007909,8.219e-05,2]
[356262529,1742153450125,-150.36,8.219e-05,2]
[356262530,1742153450134,-150.36,8.219e-05,2]
[356262531,1742153450143,-500.0,8.219e-05,2]
[356262532,1742153450152,-511.88769883,8.219e-05,2]
[356262533,1742153450161,-198.56180252,8.219e-05,2]
[356262534,1742153450171,-500.0,8.219e-05,2]
[356262535,1742153450180,-150.36,8.219e-05,2]
[356262536,1742153450189,-500.0,8.219e-05,2]
[356262537,1742153450199,-500.0,8.219e-05,2]
[356262538,1742153450208,-4597.05,8.219e-05,2]
[356262539,1742153450217,-500.0,8.219e-05,2]
[356262540,1742153450227,-500.0,8.219e-05,2]
[356262541,1742153450236,-500.0,8.219e-05,2]
[356262542,1742153450245,-278.74942108,8.219e-05,2]
[356262543,1742153450254,-4222.23,8.219e-05,2]
[356262544,1742153450263,-155.92816746,8.219e-05,2]
[356262545,1742153450272,-165.70767986,8.219e-05,2]
[356262546,1742153450281,-500.0,8.219e-05,2]
[356262547,1742153450290,-152.66991932,8.219e-05,2]
[356262548,1742153450299,-500.0,8.219e-05,2]
[356262549,1742153450308,-500.0,8.219e-05,2]
[356262550,1742153450318,-500.0,8.219e-05,2]
[356262551,1742153450327,-500.0,8.219e-05,2]
[356262552,1742153450337,-500.0,8.219e-05,2]
[356262553,1742153450346,-540.26276663,8.219e-05,2]
[356262554,1742153450356,-7961.95,8.219e-05,2]
[356262555,1742153450365,-500.0,8.219e-05,2]
[356262556,1742153450374,-500.0,8.219e-05,2]
[356262557,1742153450383,-500.0,8.219e-05,2]
[356262558,1742153450393,-500.0,8.219e-05,2]
[356262559,1742153450402,-500.0,8.219e-05,2]
[356262560,1742153450411,-515.66,8.219e-05,2]
[356262561,1742153450421,-500.0,8.219e-05,2]
[356262562,1742153450430,-500.0,8.219e-05,2]
[356262563,1742153450439,-1884.51,8.219e-05,2]
[356262564,1742153450448,-500.0,8.219e-05,2]
[356262565,1742153450457,-500.0,8.219e-05,2]
[356262566,1742153450467,-503.64438027,8.219e-05,2]
[356262567,1742153450476,-500.0,8.219e-05,2]
[356262568,1742153450486,-500.0,8.219e-05,2]
[356262569,1742153450495,-500.0,8.219e-05,2]
[356262570,1742153450504,-503.68306397,8.219e-05,2]
[356262571,1742153450513,-500.0,8.219e-05,2]
[356262572,1742153450523,-500.32424353,8.219e-05,2]
[356262573,1742153450532,-4419.34,8.219e-05,2]
[356262574,1742153450541,-500.0,8.219e-05,2]
[356262575,1742153450550,-500.0,8.219e-05,2]
[356262576,1742153450559,-400.84566051,8.219e-05,2]
[356262577,1742153450568,-500.0,8.219e-05,2]
[356262578,1742153450578,-500.0,8.219e-05,2]
[356262579,1742153450588,-500.0,8.219e-05,2]
[356262580,1742153450597,-500.0,8.219e-05,2]
[356262581,1742153450607,-500.0,8.219e-05,2]
[356262582,1742153450616,-503.98126436,8.219e-05,2]
[356262583,1742153450626,-412.01167202,8.219e-05,2]
[356262584,1742153450635,-511.88055073,8.219e-05,2]
[356262585,1742153450644,-1988.03,8.219e-05,2]
[356262586,1742153450654,-500.0,8.219e-05,2]
[356262587,1742153450664,-500.0,8.219e-05,2]
[356262588,1742153450674,-500.0,8.219e-05,2]
[356262589,1742153450684,-500.0,8.219e-05,2]
[356262590,1742153450694,-500.0,8.219e-05,2]
[356262591,1742153450703,-500.0,8.219e-05,2]
[356262592,1742153450713,-500.0,8.219e-05,2]
[356262593,1742153450722,-500.0,8.219e-05,2]
[356262594,1742153450731,-500.0,8.219e-05,2]
[356262595,1742153450740,-513.65555704,8.219e-05,2]
[356262596,1742153450749,-500.0,8.219e-05,2]
[356262597,1742153450758,-500.0,8.219e-05,2]
[356262598,1742153450768,-500.0,8.219e-05,2]
[356262599,1742153450777,-72708.87,8.219e-05,2]
[356262600,1742153450787,-521.8224932,8.219e-05,2]
[356262601,1742153450797,-500.0,8.219e-05,2]
[356262602,1742153450807,-500.0,8.219e-05,2]
[356262603,1742153450817,-500.0,8.219e-05,2]
[356262604,1742153450826,-500.0,8.219e-05,2]
[356262605,1742153450836,-151.0,8.219e-05,2]
[356262606,1742153450846,-151.0,8.219e-05,2]
[356262607,1742153450860,-150.36,8.246e-05,2]
[356262608,1742153450870,-500.0,8.246e-05,2]
[356262609,1742153450880,-500.0,8.246e-05,2]
[356262610,1742153450890,-873.0,8.246e-05,2]
[356262611,1742153450901,-150.36,8.246e-05,2]
[356262612,1742153450911,-150.36,8.246e-05,2]
[356262613,1742153450921,-255.13331884,8.274e-05,2]
[356262614,1742153450931,-500.0,8.274e-05,2]
[356262615,1742153450942,-500.0,8.274e-05,2]
[356262616,1742153450952,-873.0,8.274e-05,2]
[356262617,1742153450962,-150.36,8.274e-05,2]
[356262618,1742153450971,-209.2791543,8.274e-05,2]
[356262619,1742153450982,-160.0,8.274e-05,2]
[356262620,1742153450992,-12458.93820146,8.274e-05,2]
[356262621,1742153451001,-417.78412626,8.274e-05,2]
[356262622,1742153451011,-833.88055864,8.274e-05,2]
[356262623,1742153451022,-160.0,8.274e-05,2]
[356262624,1742153451031,-500.0,8.289e-05,2]
[356262625,1742153451041,-500.0,8.301e-05,2]
[356262626,1742153451051,-500.0,8.301e-05,2]
[356262627,1742153451061,-873.0,8.301e-05,2]
[356262628,1742153451070,-150.36,8.301e-05,2]
[356262629,1742153451080,-500.0,8.329e-05,2]
[356262630,1742153451090,-500.0,8.329e-05,2]
[356262631,1742153451099,-873.0,8.329e-05,2]
[356262632,1742153451109,-152.1406387,8.329e-05,2]
[356262633,1742153451119,-500.0,8.356e-05,2]
[356262634,1742153451128,-873.0,8.356e-05,2]
[356262635,1742153451138,-500.0,8.383e-05,2]
[356262636,1742153451148,-873.0,8.383e-05,2]
[356262637,1742153451158,-187.626,8.388e-05,2]
[356262638,1742153451167,-500.0,8.411e-05,2]
[356262639,1742153451176,-873.0,8.411e-05,2]
[356262640,1742153451186,-200.19000818,8.425e-05,2]
[356262641,1742153451195,-300.0,8.425e-05,2]
[356262642,1742153451205,-200.8803919,8.425e-05,2]
[356262643,1742153451214,-166.0,8.425e-05,2]
[356262644,1742153451223,-166.0,8.425e-05,2]
[356262645,1742153451233,-166.0,8.425e-05,2]
[356262646,1742153451242,-168.0,8.425e-05,2]
[356262647,1742153451251,-166.0,8.425e-05,2]
[356262648,1742153451262,-168.0,8.425e-05,2]
[356262649,1742153451271,-168.0,8.425e-05,2]
[356262650,1742153451281,-300.35117003,8.425e-05,2]
[356262651,1742153451291,-353.0,8.425e-05,2]
[356262652,1742153451300,-353.0,8.425e-05,2]
[356262653,1742153451310,-353.0,8.425e-05,2]
[356262654,1742153451319,-353.0,8.425e-05,2]
[356262655,1742153451329,-353.0,8.425e-05,2]
[356262656,1742153451338,-316.0,8.425e-05,2]
[356262657,1742153451348,-353.0,8.425e-05,2]
[356262658,1742153451358,-316.0,8.425e-05,2]
[356262659,1742153451368,-353.0,8.425e-05,2]
[356262660,1742153451377,-316.0,8.425e-05,2]
[356262661,1742153451387,-353.0,8.425e-05,2]
[356262662,1742153451396,-316.0,8.425e-05,2]
[356262663,1742153451405,-316.0,8.425e-05,2]
[356262664,1742153451415,-353.0,8.425e-05,2]
[356262665,1742153451424,-316.0,8.425e-05,2]
[356262666,1742153451434,-353.0,8.425e-05,2]
[356262667,1742153451444,-316.0,8.425e-05,2]
[356262668,1742153451453,-353.0,8.425e-05,2]
[356262669,1742153451462,-316.0,8.425e-05,2]
[356262670,1742153451472,-353.0,8.425e-05,2]
[356262671,1742153451481,-316.0,8.425e-05,2]
[356262672,1742153451490,-392.0570634,8.425e-05,2]
[356262673,1742153451499,-353.0,8.425e-05,2]
[356262674,1742153451509,-316.0,8.425e-05,2]
[356262675,1742153451518,-353.0,8.425e-05,2]
[356262676,1742153451528,-316.0,8.425e-05,2]
[356262677,1742153451537,-353.0,8.425e-05,2]
[356262678,1742153451546,-316.0,8.425e-05,2]
[356262679,1742153451555,-353.0,8.425e-05,2]
[356262680,1742153451564,-316.0,8.425e-05,2]
[356262681,1742153451574,-353.0,8.425e-05,2]
[356262682,1742153451583,-316.0,8.425e-05,2]
[356262683,1742153451592,-353.0,8.425e-05,2]
[356262684,1742153451601,-316.0,8.425e-05,2]
[356262685,1742153451610,-353.0,8.425e-05,2]
[356262686,1742153451620,-316.0,8.425e-05,2]
[356262687,1742153451629,-353.0,8.425e-05,2]
[356262688,1742153451639,-316.0,8.425e-05,2]
[356262689,1742153451648,-353.0,8.425e-05,2]
[356262690,1742153451658,-316.0,8.425e-05,2]
[356262691,1742153451668,-316.0,8.425e-05,2]
[356262692,1742153451677,-353.0,8.425e-05,2]
[356262693,1742153451687,-316.0,8.425e-05,2]
[356262694,1742153451696,-353.0,8.425e-05,2]
[356262695,1742153451705,-316.0,8.425e-05,2]
[356262696,1742153451715,-353.0,8.425e-05,2]
[356262697,1742153451724,-316.0,8.425e-05,2]